bitfinex-derivatives/quotes_SOLF0:USTF0_20240924
["timestamp","ask_amount","ask_price","bid_price","bid_amount"]
[1727168917387,9.33,148.15,148.1,4.1773]
[1727168917593,9.33,148.15,148.1,13.5073]
[1727168917893,12.7055,148.14,148.1,12.7062]
[1727168918084,12.7055,148.14,148.1,3.3762]
[1727168918393,9.33,148.13,148.09,9.33]
[1727168918686,15.02588244,148.14,148.09,9.33]
[1727168918891,15.02588244,148.13,148.09,9.33]
[1727168919092,9.33,148.15,148.09,9.33]
[1727168919292,3.35764944,148.16,148.09,9.33]
[1727168919489,9.33,148.15,148.11,9.33]
[1727168919889,24.34624748,148.15,148.11,9.33]
[1727168920095,24.34624748,148.15,148.11,12.7058]
[1727168920096,15.01624748,148.14,148.11,12.7058]
[1727168920293,15.01624748,148.14,148.12,9.33]
[1727168920589,3.3749,148.16,148.13,9.33]
[1727168920785,22.53620975,148.18,148.13,9.33]
[1727168921192,9.33,148.18,148.13,9.33]
[1727168921698,3.3746,148.17,148.13,12.7054]
[1727168924694,3.3749,148.16,148.13,3.3754]
[1727168924891,9.33,148.16,148.11,12.7058]
[1727168925098,3.3751,148.15,148.11,12.7058]
[1727168925490,9.33,148.14,148.07,4.0414]
[1727168925695,3.3757,148.13,148.09,9.33]
[1727168926097,3.3757,148.13,148.09,12.7063]
[1727168927291,3.3757,148.13,148.1,9.33]
[1727168928100,9.33,148.13,148.07,4.0414]
[1727168928397,9.33,148.14,148.1,9.33]
[1727168928597,3.3757,148.13,148.1,9.33]
[1727168929098,12.7055,148.14,148.1,12.706]
[1727168929299,15.0095729,148.15,148.11,9.33]
[1727168929504,9.33,148.16,148.11,9.33]
[1727168929704,3.3753,148.15,148.11,12.7059]
[1727168933713,9.33,148.15,148.11,9.33]
[1727168934914,3.3755,148.14,148.11,12.7059]
[1727168935815,3.3763,148.1,148.07,7.4182]
[1727168936007,9.33,148.13,148.09,9.33]
[1727168936206,15.00473628,148.17,148.09,9.33]
[1727168936421,9.33,148.16,148.11,9.33]
[1727168936808,3.3754,148.14,148.11,12.7058]
[1727168937914,3.3756,148.13,148.1,3.3761]
[1727168938112,3.3756,148.13,148.1,12.7061]
[1727168938422,3.3757,148.13,148.09,12.7063]
[1727168938617,9.33,148.14,148.09,12.7063]
[1727168938810,9.33,148.14,148.09,3.3763]
[1727168939114,9.33,148.14,148.09,12.7063]
[1727168939323,3.32668681,148.17,148.1,9.33]
[1727168939507,3.32668681,148.17,148.13,9.33]
[1727168939508,9.33,148.17,148.13,9.33]
[1727168940615,3.3752,148.15,148.13,9.33]
[1727168940819,9.33,148.14,148.07,4.0414]
[1727168941022,9.33,148.14,148.09,9.33]
[1727168941342,9.33,148.14,148.07,4.0414]
[1727168941515,9.33,148.14,148.09,9.33]
[1727168941911,9.33,148.14,148.1,9.33]
[1727168942613,9.33,148.13,148.07,4.0414]
[1727168942812,9.33,148.13,148.08,9.33]
[1727168943522,9.33,148.09,148.07,4.0414]
[1727168943819,12.7065,148.09,148.07,4.0414]
[1727168945019,12.7063,148.1,148.07,4.0414]
[1727168946018,9.33,148.1,148.07,4.0414]
[1727168947220,12.7062,148.1,148.06,12.7071]
[1727168947523,12.7062,148.1,148.05,12.7073]
[1727168947921,3.3764,148.09,148.05,12.7073]
[1727168948120,9.33,148.1,148.06,3.3771]
[1727168948527,9.33,148.1,148.06,9.33]
[1727168948820,9.33,148.11,148.08,3.3766]
[1727168949616,3.3757,148.13,148.09,12.7064]
[1727168949818,3.38378429,148.17,148.1,9.33]
[1727168950023,9.33,148.15,148.12,9.33]
[1727168950328,9.33,148.14,148.03,3.9426]
[1727168950626,9.33,148.13,148.09,9.33]
[1727168951020,9.33,148.13,148.09,12.7063]
[1727168951218,9.33,148.1,148.03,3.9426]
[1727168951520,1.3072,148.12,148.03,13.2726]
[1727168951726,9.33,148.08,148.04,9.33]
[1727168951928,9.33,148.09,148.07,3.3767]
[1727168952819,24.31715089,148.11,148.07,3.3767]
[1727168953016,9.33,148.11,148.07,3.3767]
[1727168953222,9.33,148.1,148.03,3.9426]
[1727168953423,9.33,148.1,148.05,9.33]
[1727168954130,9.33,148.1,148.06,9.33]
[1727168956231,9.33,148.1,148.07,3.3767]
[1727168956427,9.33,148.1,148.06,9.33]
[1727168957030,9.33,148.1,148.07,3.3769]
[1727168957329,9.33,148.1,148.03,3.9426]
[1727168957633,9.33,148.1,148.05,12.7072]
[1727168957634,12.7064,148.1,148.05,12.7072]
[1727168957828,9.33,148.08,148.05,9.33]
[1727168958041,9.33,148.07,148.03,3.9426]
[1727168958233,9.33,148.07,148.03,7.3202]
[1727168959328,9.33,148.07,148.04,3.3774]
[1727168959723,9.33,148.07,148.03,3.9426]
[1727168959927,12.7069,148.07,148.03,7.3203]
[1727168960129,9.33,148.07,148.03,7.3203]
[1727168960334,3.38817567,148.1,148.04,9.33]
[1727168960634,3.38817567,148.1,148.05,9.33]
[1727168960635,9.33,148.1,148.05,9.33]
[1727168962636,1.4085,148.17,148.05,9.33]
[1727168962637,9.33,148.09,148.05,9.33]
[1727168962935,9.33,148.09,148.06,3.3771]
[1727168964036,9.33,148.09,148.03,3.9426]
[1727168964238,9.33,148.09,148.04,9.33]
[1727168964432,9.33,148.07,148.05,3.3773]
[1727168966333,9.33,148.07,148.04,3.3775]
[1727168966535,9.33,148.07,148.03,13.2726]
[1727168966726,9.33,148.07,148.04,3.3774]
[1727168969038,9.33,148.07,147.94,91.13629492]
[1727168969039,3.3779,148.03,147.94,84.37679492]
[1727168969233,9.33,148.05,147.97,2.7207]
[1727168969435,9.33,148.05,148.0,9.33]
[1727168969737,9.33,148.05,148.01,3.3782]
[1727168970130,3.3776,148.04,148.01,3.3782]
[1727168970336,9.33,148.05,148.01,3.3782]
[1727168970740,3.3777,148.04,148.0,12.7085]
[1727168971134,3.3777,148.04,147.97,2.7207]
[1727168971341,9.33,148.03,147.99,9.33]
[1727168971534,9.33,148.03,147.97,2.7207]
[1727168971842,9.33,148.03,148.0,3.3784]
[1727168972742,9.33,148.03,147.99,9.33]
[1727168972743,9.33,148.01,147.99,3.3787]
[1727168973341,3.3779,148.03,147.99,3.3787]
[1727168973543,9.33,148.02,147.99,3.3787]
[1727168974341,14.97156527,148.06,148.01,3.3783]
[1727168974539,1.3504,148.07,148.01,9.33]
[1727168974746,9.33,148.05,148.01,9.33]
[1727168974944,14.9646804,148.09,148.02,9.33]
[1727168975239,3.3152027,148.1,148.03,9.33]
[1727168975445,9.33,148.08,148.03,9.33]
[1727168975642,9.33,148.07,148.04,3.3775]
[1727168975942,9.33,148.06,148.04,3.3775]
[1727168976140,9.33,148.06,148.03,9.33]
[1727168976344,9.33,148.05,147.95,4.1429]
[1727168976547,9.33,148.05,148.0,9.33]
[1727168977144,9.33,148.05,148.02,3.3779]
[1727168979239,9.33,148.05,147.95,4.1429]
[1727168979440,9.33,148.05,148.01,9.33]
[1727168980042,12.7075,148.05,148.02,3.3779]
[1727168980243,9.33,148.04,148.01,9.33]
[1727168980446,9.33,148.05,148.01,9.33]
[1727168980643,9.33,148.05,148.02,3.3778]
[1727168982050,9.33,148.03,147.95,4.1429]
[1727168982245,9.33,148.03,147.99,9.33]
[1727168982847,9.33,148.03,148.0,3.3784]
[1727168983245,9.33,148.03,147.99,9.33]
[1727168983445,12.7078,148.03,148.0,3.3783]
[1727168983645,9.33,148.01,147.95,4.1429]
[1727168983843,9.33,148.0,147.95,4.1429]
[1727168984044,9.33,148.0,147.98,3.3788]
[1727168984452,9.33,148.0,147.97,9.33]
[1727168984649,9.33,148.0,147.95,4.1429]
[1727168984851,9.33,148.0,147.96,9.33]
[1727168985752,9.33,147.98,147.95,4.1429]
[1727168987151,9.33,147.99,147.95,16.8524]
[1727168987351,9.33,147.99,147.95,13.4729]
[1727168987854,9.33,147.99,147.96,3.3794]
[1727168988064,3.3784,148.01,147.96,3.3794]
[1727168988359,9.33,148.0,147.96,3.3794]
[1727168988653,2.7482,148.08,147.98,9.33]
[1727168988852,9.33,148.02,147.98,9.33]
[1727168989056,9.33,148.02,147.98,12.7088]
[1727168990255,9.33,148.0,147.95,4.1429]
[1727168990456,9.33,148.0,147.95,13.4729]
[1727168991057,9.33,148.0,147.96,3.3792]
[1727168993462,12.7085,148.0,147.96,3.3792]
[1727168994959,3.3781,148.02,147.97,3.379]
[1727168995166,9.33,148.01,147.97,3.379]
[1727168995754,12.7084,148.01,147.97,3.379]
[1727168996464,9.33,148.0,147.96,3.3793]
[1727168996664,9.33,148.0,147.95,13.4729]
[1727168997064,9.33,148.0,147.97,3.3791]
[1727168997265,9.33,148.0,147.95,13.4729]
[1727168998162,9.33,148.0,147.97,3.3791]
[1727168999758,9.33,148.0,147.96,9.33]
[1727169000068,9.33,148.01,147.98,3.3789]
[1727169000671,9.33,148.0,147.98,3.3789]
[1727169001469,12.7085,148.0,147.97,3.3791]
[1727169001669,3.45469912,148.04,147.97,9.33]
[1727169001867,12.7084,148.01,147.97,12.7091]
[1727169002070,12.7084,148.01,147.97,3.3791]
[1727169002964,3.3785,148.0,147.97,3.3791]
[1727169003367,9.33,148.01,147.98,3.3789]
[1727169004070,12.7084,148.01,147.98,3.3789]
[1727169004469,12.7087,148.0,147.97,3.3791]
[1727169005478,3.45469912,148.04,147.95,4.1429]
[1727169005666,9.33,148.01,147.97,9.33]
[1727169006067,14.96453226,148.07,148.0,9.33]
[1727169006269,9.33,148.05,148.0,9.33]
[1727169006468,12.7084,148.01,147.98,3.3789]
[1727169006666,9.33,148.01,147.96,9.33]
[1727169007068,9.33,148.01,147.98,3.3788]
[1727169007767,12.7085,148.01,147.98,3.3788]
[1727169008772,12.7087,148.0,147.97,3.3791]
[1727169014570,9.33,148.0,147.95,4.1429]
[1727169014781,9.33,147.99,147.91,95.17017393]
[1727169014975,9.33,147.99,147.94,9.33]
[1727169015576,3.3792,147.98,147.95,3.3795]
[1727169017676,12.7092,147.98,147.95,3.3795]
[1727169018581,9.33,147.98,147.94,3.3798]
[1727169018781,9.33,147.98,147.94,12.7098]
[1727169019485,3.3793,147.97,147.94,12.7098]
[1727169019687,9.33,147.98,147.94,12.7098]
[1727169020087,15.00012462,148.03,147.95,12.7096]
[1727169020392,9.33,147.99,147.95,12.7096]
[1727169020787,12.709,147.98,147.94,12.7097]
[1727169021291,9.33,147.96,147.92,9.33]
[1727169021689,12.7095,147.96,147.93,3.3799]
[1727169022891,9.33,147.96,147.92,9.33]
[1727169023285,9.33,147.95,147.91,12.7104]
[1727169023682,9.33,147.95,147.86,4.1059]
[1727169023683,9.33,147.95,147.89,3.381]
[1727169023893,9.33,147.94,147.86,4.1059]
[1727169024087,15.0053321,147.99,147.91,9.33]
[1727169024293,3.3799,147.94,147.91,9.33]
[1727169024590,9.33,147.95,147.86,7.514745]
[1727169024790,3.38,147.94,147.91,9.33]
[1727169024993,9.33,147.95,147.91,9.33]
[1727169025194,9.33,147.95,147.86,7.514745]
[1727169025390,3.3803,147.93,147.9,9.33]
[1727169025988,9.33,147.95,147.9,9.33]
[1727169026289,9.33,147.94,147.9,9.33]
[1727169026492,3.3801,147.93,147.9,9.33]
[1727169026790,9.33,147.94,147.89,9.33]
[1727169027295,9.33,147.94,147.89,12.711]
[1727169027999,3.3804,147.92,147.89,12.711]
[1727169028299,3.3804,147.92,147.89,9.33]
[1727169028491,3.3807,147.91,147.86,4.1059]
[1727169028691,3.3807,147.91,147.88,9.33]
[1727169028890,3.3807,147.91,147.88,12.7111]
[1727169029694,3.3808,147.9,147.88,12.7111]
[1727169029991,9.33,147.93,147.88,12.7111]
[1727169030297,9.33,147.92,147.87,9.33]
[1727169030998,3.3809,147.9,147.87,12.7114]
[1727169031199,9.33,147.92,147.87,9.33]
[1727169031395,9.33,147.92,147.86,7.4874]
[1727169031590,9.33,147.89,147.86,7.4874]
[1727169031893,9.33,147.89,147.87,3.3814]
[1727169032197,15.00329335,147.96,147.88,9.33]
[1727169032394,12.7093,147.97,147.92,9.33]
[1727169032698,9.33,147.97,147.92,9.33]
[1727169032891,3.3796,147.96,147.93,3.3801]
[1727169033200,9.33,147.95,147.93,3.3801]
[1727169033403,9.33,147.95,147.91,9.33]
[1727169034198,9.33,147.93,147.89,9.33]
[1727169035486,9.33,147.93,147.86,4.1059]
[1727169035696,9.33,147.93,147.88,9.33]
[1727169035899,3.3805,147.92,147.88,3.3812]
[1727169036093,3.3805,147.92,147.88,12.7112]
[1727169036496,3.3806,147.91,147.88,12.7112]
[1727169037194,9.33,147.92,147.86,4.1059]
[1727169037396,9.33,147.92,147.87,9.33]
[1727169037794,3.3806,147.91,147.88,3.3812]
[1727169039194,3.3808,147.9,147.88,3.3812]
[1727169039493,9.33,147.92,147.87,9.33]
[1727169039696,9.33,147.88,147.73,98.50782549]
[1727169040002,9.33,147.88,147.84,9.33]
[1727169040203,3.3815,147.87,147.84,9.33]
[1727169040399,9.33,147.86,147.82,3.3826]
[1727169040730,12.7119,147.86,147.82,3.3826]
[1727169041302,3.3821,147.85,147.81,12.0545]
[1727169041496,3.3821,147.85,147.81,10.7024]
[1727169041699,12.7121,147.85,147.81,10.7024]
[1727169041895,9.33,147.85,147.82,3.3824]
[1727169043395,9.33,147.85,147.75,1.3521]
[1727169043699,9.33,147.81,147.77,9.33]
[1727169044097,9.33,147.81,147.79,3.3831]
[1727169045599,12.7125,147.83,147.78,9.33]
[1727169046194,12.7125,147.83,147.76,1.3645]
[1727169046195,3.3826,147.82,147.79,3.3832]
[1727169046798,12.7125,147.83,147.8,3.3831]
[1727169047108,9.33,147.83,147.79,9.33]
[1727169047403,9.33,147.84,147.79,9.33]
[1727169048505,9.33,147.84,147.81,3.3826]
[1727169048905,9.33,147.83,147.78,9.33]
[1727169049112,9.33,147.83,147.82,3.3826]
[1727169049402,9.33,147.84,147.79,9.33]
[1727169049899,9.33,147.84,147.81,3.3827]
[1727169050402,12.7124,147.84,147.8,3.3829]
[1727169050593,9.33,147.83,147.79,9.33]
[1727169051398,9.33,147.83,147.8,3.383]
[1727169051603,9.33,147.81,147.76,1.3645]
[1727169051905,9.33,147.82,147.77,9.33]
[1727169052299,4.74944631,147.88,147.79,9.33]
[1727169052506,9.33,147.84,147.79,9.33]
[1727169053195,9.33,147.83,147.79,9.33]
[1727169053602,9.33,147.83,147.81,3.3827]
[1727169053907,9.33,147.83,147.79,9.33]
[1727169054310,9.33,147.83,147.82,3.3826]
[1727169054809,9.33,147.83,147.81,3.3827]
[1727169055205,9.33,147.83,147.79,9.33]
[1727169055206,3.382,147.85,147.8,9.33]
[1727169055409,12.712,147.85,147.8,9.33]
[1727169056007,12.712,147.85,147.82,3.3825]
[1727169056503,58.73740813,147.92,147.83,9.33]
[1727169056708,9.33,147.87,147.82,9.33]
[1727169056909,12.7119,147.86,147.83,3.3822]
[1727169058108,9.33,147.86,147.81,10.6856]
[1727169058711,9.33,147.86,147.81,13.99738938]
[1727169059208,9.33,147.86,147.81,10.6856]
[1727169059713,12.7118,147.86,147.83,3.3822]
[1727169059910,9.33,147.85,147.81,1.3556]
[1727169060409,12.7121,147.85,147.81,4.7383]
[1727169060806,9.33,147.83,147.81,4.7383]
[1727169061316,9.33,147.83,147.81,1.3556]
[1727169062412,12.7125,147.83,147.81,1.3556]
[1727169064613,9.33,147.83,147.8,9.33]
[1727169064804,9.33,147.83,147.79,9.33]
[1727169066013,12.7125,147.83,147.8,3.3829]
[1727169066910,3.3826,147.82,147.79,9.33]
[1727169067211,9.33,147.84,147.79,9.33]
[1727169067508,9.33,147.83,147.79,9.33]
[1727169068113,3.3828,147.82,147.79,12.7132]
[1727169068909,3.3828,147.82,147.8,3.383]
[1727169069105,12.7125,147.83,147.8,3.383]
[1727169069610,9.33,147.83,147.8,3.383]
[1727169071011,62.07232081,147.92,147.82,9.33]
[1727169071212,224.0,148.02,147.89,9.33]
[1727169071417,3.3803,147.93,147.89,12.7109]
[1727169071617,9.33,147.94,147.89,9.33]
[1727169071821,3.3806,147.91,147.88,9.33]
[1727169072009,9.33,147.91,147.87,9.33]
[1727169072321,9.33,147.89,147.85,9.33]
[1727169072511,3.3814,147.88,147.84,15.506]
[1727169073113,3.3814,147.88,147.85,3.3819]
[1727169073714,3.3815,147.87,147.83,14.145]
[1727169074221,9.33,147.9,147.85,9.33]
[1727169074412,9.33,147.92,147.87,9.33]
[1727169074922,3.3808,147.91,147.87,12.7114]
[1727169075223,9.33,147.91,147.86,9.33]
[1727169075414,3.3809,147.9,147.87,9.33]
[1727169075721,9.33,147.92,147.87,9.33]
[1727169076219,3.3806,147.91,147.87,12.7113]
[1727169076518,9.33,147.92,147.87,12.7113]
[1727169076917,3.3809,147.9,147.87,12.7113]
[1727169077215,9.33,147.91,147.86,12.7116]
[1727169077719,3.3808,147.9,147.87,12.7115]
[1727169078119,3.3806,147.91,147.87,12.7115]
[1727169078321,9.33,147.92,147.87,12.7115]
[1727169078617,9.33,147.92,147.88,3.3811]
[1727169078822,224.0,148.0,147.85,1.3094]
[1727169078823,224.0,148.0,147.91,9.33]
[1727169079016,9.33,147.99,147.94,9.33]
[1727169079725,9.33,147.97,147.93,12.7099]
[1727169080028,3.3796,147.96,147.93,9.33]
[1727169080327,3.3796,147.96,147.94,9.33]
[1727169080524,3.3793,147.97,147.94,9.33]
[1727169081223,3.379,147.98,147.95,9.33]
[1727169081926,3.3792,147.97,147.95,9.33]
[1727169082424,14.92255914,148.06,147.96,9.33]
[1727169082612,9.33,148.04,147.98,9.33]
[1727169082928,9.33,148.04,147.98,12.7088]
[1727169082929,3.3782,148.02,147.98,12.7088]
[1727169083312,1.3059,148.07,148.0,9.33]
[1727169083522,3.3778,148.03,148.0,9.33]
[1727169084318,9.33,148.06,148.0,9.33]
[1727169084825,9.33,148.05,148.0,9.33]
[1727169085020,1.3012,148.11,148.0,9.33]
[1727169085221,9.33,148.05,148.0,9.33]
[1727169085416,3.3779,148.03,148.0,9.33]
[1727169085821,9.33,148.04,148.0,9.33]
[1727169086825,9.33,148.06,148.01,9.33]
[1727169087219,3.3778,148.03,148.01,9.33]
[1727169087623,9.33,148.06,148.01,9.33]
[1727169088521,9.33,148.04,148.0,9.33]
[1727169088725,3.3783,148.01,148.0,9.33]
[1727169090230,9.33,148.01,147.95,1.4234]
[1727169090429,9.33,147.99,147.95,1.4234]
[1727169090823,3.3791,147.98,147.96,9.33]
[1727169091132,9.33,148.01,147.96,9.33]
[1727169092122,1.3128,148.05,147.96,9.33]
[1727169092327,9.33,148.0,147.96,9.33]
[1727169094030,9.33,147.99,147.94,9.33]
[1727169094732,9.33,148.0,147.95,9.33]
[1727169094935,9.33,148.0,147.96,9.33]
[1727169095129,9.33,148.01,147.96,9.33]
[1727169096731,3.3791,147.98,147.96,9.33]
[1727169097138,3.42936839,148.03,147.96,9.33]
[1727169097139,9.33,148.0,147.96,9.33]
[1727169097738,9.33,147.97,147.89,4.0692]
[1727169097935,9.33,147.95,147.9,9.33]
[1727169098338,3.3805,147.92,147.9,9.33]
[1727169098536,9.33,147.95,147.9,9.33]
[1727169098731,9.33,147.95,147.89,4.0692]
[1727169098937,9.33,147.95,147.9,9.33]
[1727169099134,3.3807,147.91,147.9,9.33]
[1727169100339,3.3812,147.89,147.86,95.74]
[1727169100544,14.62,147.95,147.86,95.74]
[1727169100545,18.0079042,147.95,147.86,95.74]
[1727169100850,14.62,147.95,147.86,95.74]
[1727169101148,14.62,147.97,147.87,14.62]
[1727169101341,14.62,147.97,147.88,3.3812]
[1727169101533,14.62,147.97,147.87,14.62]
[1727169102938,3.3808,147.9,147.87,14.62]
[1727169103740,3.3808,147.9,147.86,84.5015]
[1727169104139,18.04037988,147.95,147.85,14.62]
[1727169104341,14.62,147.93,147.85,14.62]
[1727169105049,3.3815,147.87,147.85,14.62]
[1727169105248,14.62,147.93,147.85,14.62]
[1727169105448,3.46638638,147.92,147.85,14.62]
[1727169105652,14.62,147.93,147.85,14.62]
[1727169105840,18.05864717,147.93,147.85,14.62]
[1727169106246,3.3814,147.88,147.85,14.62]
[1727169107454,3.3814,147.88,147.85,18.0019]
[1727169107655,3.3811,147.89,147.85,18.0019]
[1727169108753,17.984682,147.94,147.85,14.62]
[1727169109059,14.62,147.94,147.85,14.62]
[1727169109254,3.3807,147.91,147.85,14.62]
[1727169109450,3.3807,147.91,147.82,4.0219]
[1727169109451,15.9496,147.96,147.87,14.62]
[1727169109652,3.44722598,147.95,147.87,14.62]
[1727169109853,3.3808,147.91,147.87,14.62]
[1727169110245,3.44722598,147.95,147.87,14.62]
[1727169110445,3.44722598,147.95,147.87,18.0014]
[1727169110956,3.3808,147.91,147.87,18.0014]
[1727169111147,3.32645466,147.94,147.87,18.0014]
[1727169111350,15.9496,147.96,147.87,18.0014]
[1727169111550,3.3808,147.91,147.87,18.0014]
[1727169112051,3.37922868,147.94,147.87,14.62]
[1727169112257,14.62,147.94,147.85,14.62]
[1727169112457,17.94025436,147.94,147.85,14.62]
[1727169112754,3.3803,147.92,147.88,3.3811]
[1727169112945,15.9496,147.96,147.88,3.3811]
[1727169113553,3.3808,147.9,147.87,18.0015]
[1727169115957,3.34190231,147.94,147.87,14.62]
[1727169116158,15.9496,147.96,147.87,14.62]
[1727169116560,3.3809,147.9,147.85,14.62]
[1727169116757,14.62,147.94,147.85,14.62]
[1727169117363,18.05008385,147.94,147.87,3.3813]
[1727169118552,3.3809,147.9,147.87,3.3813]
[1727169118756,14.62,147.94,147.88,3.3812]
[1727169120666,3.3807,147.91,147.88,3.3812]
[1727169122267,3.3807,147.91,147.89,9.36]
[1727169122864,3.3817,147.87,147.84,3.382]
[1727169123065,3.3817,147.87,147.85,9.36]
[1727169123261,9.36,147.89,147.85,9.36]
[1727169123462,3.30931601,147.95,147.85,9.36]
[1727169123463,3.3814,147.88,147.86,9.36]
[1727169124165,8.0886,147.96,147.82,4.0219]
[1727169124166,1.3296,147.96,147.87,9.36]
[1727169124477,9.36,147.93,147.89,9.36]
[1727169124665,9.36,147.94,147.9,9.36]
[1727169125366,3.3805,147.92,147.9,9.36]
[1727169126063,3.3802,147.93,147.91,9.36]
[1727169129368,9.36,147.96,147.91,9.36]
[1727169129369,3.3799,147.94,147.91,9.36]
[1727169129567,9.36,147.97,147.91,3.3806]
[1727169129766,9.36,147.97,147.92,9.36]
[1727169130767,3.38,147.94,147.92,9.36]
[1727169131474,3.3801,147.93,147.92,9.36]
[1727169131972,3.3799,147.94,147.92,9.36]
[1727169133666,1.4058,148.0,147.92,12.7403]
[1727169133872,9.36,147.98,147.94,9.36]
[1727169134075,224.0,148.07,147.96,9.36]
[1727169134273,9.36,148.0,147.96,9.36]
[1727169134468,3.3789,147.99,147.96,9.36]
[1727169134875,3.379,147.98,147.96,9.36]
[1727169135072,3.321158,148.02,147.95,9.36]
[1727169135278,9.36,147.99,147.94,9.36]
[1727169135677,3.3795,147.96,147.94,9.36]
[1727169136282,3.3795,147.96,147.93,12.74]
[1727169136878,9.36,147.99,147.93,12.74]
[1727169137685,9.36,147.97,147.92,3.3802]
[1727169138086,9.36,147.97,147.92,12.7402]
[1727169138288,9.36,147.93,147.82,81.16]
[1727169138490,9.36,147.93,147.87,9.36]
[1727169138983,3.3807,147.91,147.87,12.7413]
[1727169139378,9.36,147.93,147.87,12.7413]
[1727169140179,3.3807,147.91,147.88,3.3812]
[1727169140388,3.3807,147.91,147.87,9.36]
[1727169140686,9.36,147.93,147.87,9.36]
[1727169141481,9.36,147.93,147.87,12.7414]
[1727169142191,3.3808,147.9,147.87,9.36]
[1727169142588,9.36,147.93,147.87,9.36]
[1727169142793,3.3808,147.9,147.87,12.7413]
[1727169144890,9.36,147.93,147.87,9.36]
[1727169146387,3.381,147.89,147.87,9.36]
[1727169147193,9.36,147.93,147.87,9.36]
[1727169147194,3.3813,147.88,147.87,9.36]
[1727169147396,9.36,147.9,147.83,3.9764]
[1727169147590,3.41607267,147.97,147.83,3.9764]
[1727169147591,9.36,147.89,147.83,3.9764]
[1727169147790,14.9807791,147.95,147.83,3.9764]
[1727169147791,3.3817,147.87,147.85,9.36]
[1727169147993,3.3817,147.87,147.83,3.9764]
[1727169147994,9.36,147.9,147.83,3.9764]
[1727169148296,9.36,147.9,147.85,9.36]
[1727169149390,3.3815,147.87,147.85,9.36]
[1727169149795,3.43426991,147.92,147.86,9.36]
[1727169149995,9.36,147.91,147.86,9.36]
[1727169150197,3.3814,147.88,147.86,9.36]
[1727169150791,3.3811,147.89,147.86,9.36]
[1727169151601,3.3812,147.88,147.86,9.36]
[1727169153304,3.3815,147.87,147.86,9.36]
[1727169153506,3.42987133,147.93,147.86,9.36]
[1727169153704,9.36,147.91,147.86,9.36]
[1727169153908,3.3815,147.87,147.86,9.36]
[1727169154310,9.36,147.91,147.86,9.36]
[1727169154609,3.3814,147.88,147.86,9.36]
[1727169156003,3.3815,147.87,147.86,9.36]
[1727169156406,3.3815,147.87,147.84,3.3821]
[1727169156612,3.3815,147.87,147.85,9.36]